Cogmind - Beta 11 @@@ ROGUE MODE // 2022.03.18 @ 11:52:51 Player: BOTHUNTER Result: Self-destructed Performance ------------- Evolutions (1) 500 Regions Visited (2) 400 Robots Destroyed (37) 185 Value Destroyed (831) 831 Prototype IDs (0) 0 Alien Tech Used (0) 0 Bonus (108) 108 TOTAL SCORE: 2024 Bonus ------- High Alert Combat Kills 108 Cogmind --------- Core Integrity 253/400 Matter 91/300 Energy 250/250 System Corruption 0% Temperature Cool (0) Movement Walking (120) Location -9/Materials Parts ------- > --- POWER (1) -------- Ion Engine > --- PROPULSION (2) --- Aluminum Leg Aluminum Leg > --- UTILITY (3) ------ Small Storage Unit Transport Network Coupler > --- WEAPON (3) ------- (None) > --- INVENTORY (8) ---- Light Ion Engine Light Ion Engine Aluminum Leg Assault Rifle Peak State ------------ > --- POWER ------------ Ion Engine > --- PROPULSION ------- Aluminum Leg Aluminum Leg > --- UTILITY ---------- Small Storage Unit Terrain Scanner Transport Network Coupler > --- WEAPON ----------- Beam Cannon Assault Rifle Grenade Launcher > --- INVENTORY -------- Light Ion Engine Light Ion Engine Assault Rifle Assault Rifle [Rating: 9] Favorites ----------- Power Ion Engine Engine Ion Engine Propulsion Aluminum Leg Treads Light Treads Leg Aluminum Leg Utility Small Storage Unit Device Heat Sink Storage Small Storage Unit Processor Transport Network Coupler Weapon Assault Rifle Energy Cannon Beam Cannon Ballistic Gun Assault Rifle Ballistic Cannon Improved Light Cannon Launcher Grenade Launcher Build | -11 -10 -9 ------- Run | Scr Mat Mat Slots Evolved 2 | . . 2 Power . | . . . Propulsion . | . . . Utility 1 | . . 1 Weapon 1 | . . 1 Parts Attached 19 | 6 4 9 Power 2 | 1 1 . Engine 2 | 1 1 . Core . | . . . Reactor . | . . . Propulsion 5 | 2 . 3 Treads 1 | . . 1 Leg 4 | 2 . 2 Wheel . | . . . Hover . | . . . Flight . | . . . Utility 4 | 1 2 1 Device 2 | . 1 1 Storage 1 | 1 . . Processor 1 | . 1 . Hackware . | . . . Protection . | . . . Artifact . | . . . Weapon 8 | 2 1 5 Energy Gun . | . . . Energy Cannon 1 | . . 1 Ballistic Gun 3 | 2 . 1 Ballistic Cannon 3 | . . 3 Launcher 1 | . 1 . Special Weapon . | . . . Impact Weapon . | . . . Slashing Weapon . | . . . Piercing Weapon . | . . . Special Melee Weapon . | . . . Unidentified Prototypes . | . . . Parts Lost 10 | . 1 9 Power . | . . . Propulsion 1 | . . 1 Utility 2 | . 1 1 Weapon 7 | . . 7 Highest Loss Streak 7 | . 1 7 To Critical Strikes . | . . . Average Slot Usage (%) 84 | . 92 76 Engine 12 | . 14 11 Leg 24 | . 28 20 Device 3 | . 6 1 Storage 12 | . 14 11 Processor 5 | . . 11 Energy Cannon 2 | . . 4 Ballistic Gun 12 | . 16 8 Ballistic Cannon 1 | . . 3 Launcher 8 | . 12 5 Naked Turns . | . . . Heaviest Build 19 | 12 16 19 Greatest Support 20 | 20 20 20 Greatest Overweight (x) 1 | . . 1 Average Overweight (x) . | . . . Largest Inventory Capacity 8 | 8 8 8 Average Capacity 7 | 6 8 8 Most Carried 4 | 2 4 4 Average Carried 3 | 1 3 3 Final Capacity 8 | 8 8 8 Final Carried 4 | 2 4 4 Class Distribution -------------------- 88% | Mutant 11% | Scavenger-Mutant Dominant Class ---------------- Mutant | -10/Materials Mutant | -9/Materials Resources | -11 -10 -9 ----------- Run | Scr Mat Mat Matter Collected 539 | 159 240 140 Remotely . | . . . Salvage Created 719 | . 421 298 Parts 55 | . 26 29 Haulers Intercepted 2 | . 1 1 Recyclers Shooed 1 | . 1 . Parts Field Recycled . | . . . Retrieved Matter . | . . . Parts Self-Destructed . | . . . Prevented . | . . . Kills | -11 -10 -9 ------- Run | Scr Mat Mat Combat Hostiles Destroyed 25 | . 11 14 Guns 3 | . 3 . Cannons 6 | . . 6 AOE 16 | . 8 8 Classes Destroyed 9 | . 7 2 Worker 3 | . 2 1 Builder 2 | . 1 1 Hauler 2 | . 1 1 Mechanic 1 | . 1 . Operator 3 | . 3 . Watcher 1 | . . 1 Swarmer 10 | . 3 7 Grunt 14 | . 8 6 Sentry 1 | . . 1 Best Kill Streak 10 | . 7 10 Combat Bots Only 8 | . 4 8 Max Kills in Single Turn 5 | . 3 5 Gunslinging . | . . . Exploded 4 | . 2 4 Melee . | . . . Uniques/NPCs Destroyed . | . . . Combat | -11 -10 -9 -------- Run | Scr Mat Mat Damage Taken 1089 | . 256 833 Core 247 | . 100 147 Absorbed by Shields . | . . . Core Remaining (%) 80 | 100 60 . Volleys Fired 74 | . 40 34 Largest 3 | . 2 3 Hottest 119 | . 50 119 Shots Fired 113 | . 55 58 Gun 65 | . 44 21 Cannon 32 | . . 32 Launcher 16 | . 11 5 Special . | . . . Kinetic 83 | . 44 39 Thermal 14 | . . 14 Explosive 16 | . 11 5 Electromagnetic . | . . . Robot Hit Streak 7 | . 5 7 Robot Miss Streak 5 | . 5 4 Penetration Max . | . . . Secondary Targets . | . . . Shots Hit Robots 68 | . 31 37 Core Hits 61 | . 36 25 Critical Kills . | . . . Critical Parts Destroyed 1 | . 1 . Critical Strikes 1 | . 1 . Destroy 1 | . 1 . Melee Attacks . | . . . Impact . | . . . Slashing . | . . . Piercing . | . . . Sneak Attacks . | . . . Combat Hostiles . | . . . Follow-up Attacks . | . . . Damage Inflicted 2284 | 10 985 1289 Guns 463 | . 329 134 Cannons 469 | . . 469 Explosions 1330 | . 656 674 Melee . | . . . Ramming 22 | 10 . 12 Kinetic 743 | . 329 414 Thermal 189 | . . 189 Explosive 1330 | . 656 674 Electromagnetic . | . . . Impact . | . . . Slashing . | . . . Piercing . | . . . Highest Corruption . | . . . Average Corruption . | . . . Corruption Purged . | . . . Corruption Blocked . | . . . Overload Shots . | . . . Overflow Damage 84 | . . 84 Projectiles . | . . . Explosions 84 | . . 84 Melee . | . . . Knockbacks 4 | 1 . 3 Impact 1 | 1 . . Kinetic 3 | . . 3 Secondary . | . . . Self-Inflicted Damage 138 | . . 138 Shots 3 | . . 3 Rammed . | . . . Targets Rammed 6 | 4 . 2 Kicked 6 | 4 . 2 Crushed . | . . . Highest Temperature 307 | . 6 307 Average Temperature 119 | . 3 132 Received Heat Transfer 411 | . 108 303 Effects 2 | . . 2 Energy Bleed 2 | . . 2 Siege Activations . | . . . Robots Corrupted . | . . . Combat Hostiles . | . . . Parts Fried . | . . . Impact Corruptions . | . . . Robots Melted . | . . . Combat Hostiles . | . . . Parts Melted 1 | . . 1 Heat Transferred 407 | . . 407 Parts Sabotaged . | . . . Parts Stolen . | . . . Parts Stripped . | . . . Power Chain Reactions . | . . . Missiles Intercepted . | . . . Alert | -11 -10 -9 ------- Run | Scr Mat Mat Peak Influence 749 | . 638 749 Initial 269 | . . 269 Average 350 | . 346 441 Maximum Alert Level 3 | . 2 3 Low Security (%) 34 | 100 22 30 Level 1 21 | . 39 8 Level 2 33 | . 38 37 Level 3 10 | . . 23 Level 4 . | . . . Level 5 . | . . . High Security . | . . . Max Security . | . . . Squads Dispatched 7 | . 3 4 Investigation 2 | . . 2 Extermination . | . . . Reinforcement 5 | . 3 2 Assault . | . . . Garrison . | . . . Intercept . | . . . Searches Triggered . | . . . Construction Impeded . | . . . Haulers Reinforced . | . . . Active Scanning Responses . | . . . Cargo Convoy Interrupts . | . . . Stealth | -11 -10 -9 --------- Run | Scr Mat Mat Distress Signals . | . . . Communications Jammed . | . . . Distress Signals . | . . . Times Spotted 44 | . 22 22 Peak Tracking Total 6 | . 6 6 Tactical Retreats . | . . . Traps | -11 -10 -9 ------- Run | Scr Mat Mat Traps Triggered . | . . . Indirectly . | . . . Trap Hack Attempts . | . . . Triggered . | . . . Disarmed . | . . . Reprogrammed . | . . . Reused . | . . . Traps Extracted . | . . . Installed . | . . . Triggered . | . . . Machines | -11 -10 -9 ---------- Run | Scr Mat Mat Machines Disabled 9 | . 5 4 Max in Single Turn 2 | . 2 2 Machines Sabotaged . | . . . Garrisons Compromised . | . . . Overloaded Fab Kills . | . . . Hacking | -11 -10 -9 --------- Run | Scr Mat Mat Machines Accessed 3 | . 1 2 Terminals 3 | . 1 2 Fabricators . | . . . Repair Stations . | . . . Recycling Units . | . . . Scanalyzers . | . . . Garrison Access . | . . . Total Hacks 13 | . 4 9 Successful 7 | . 3 4 Failed 6 | . 1 5 Catastrophic . | . . . Database Lockouts . | . . . Manual 6 | . 3 3 Terminals 13 | . 4 9 Fabricators . | . . . Repair Stations . | . . . Recycling Units . | . . . Scanalyzers . | . . . Garrison Access . | . . . Terminal Hacks 4 | . 1 3 Branch Access Points 1 | . . 1 Alert Level 1 | . 1 . Unreport Threat 1 | . . 1 Dispatch Records 1 | . . 1 Fabricator Hacks . | . . . Repair Station Hacks . | . . . Recycling Unit Hacks . | . . . Scanalyzer . | . . . Garrison Access Hacks . | . . . Unauthorized Hacks 3 | . 2 1 Terminals 3 | . 2 1 Track 1 | . . 1 Botnet 1 | . 1 . Operators 1 | . 1 . Fabricators . | . . . Repair Stations . | . . . Recycling Units . | . . . Scanalyzers . | . . . Garrison Access . | . . . Data Cores Recovered . | . . . Used . | . . . Hacking Detections 2 | . . 2 Full Trace Events 2 | . . 2 Feedback Events . | . . . Feedback Blocked . | . . . Robot Schematics Acquired . | . . . Robots Built . | . . . Authchips . | . . . Time . | . . . Total Robot Build Rating . | . . . Part Schematics Acquired . | . . . Parts Built . | . . . Authchips . | . . . Time . | . . . Total Part Build Rating . | . . . Parts Repaired . | . . . Time . | . . . Parts Recycled . | . . . Recycled Matter . | . . . Retrieved Matter . | . . . Retrieved Components . | . . . Parts Scanalyzed . | . . . Part Schematics Acquired . | . . . Parts Damaged . | . . . Bothacking | -11 -10 -9 ------------ Run | Scr Mat Mat Used RIF Installer . | . . . Robots Hacked . | . . . Non-combat . | . . . Combat . | . . . Robot Hacks Applied . | . . . Relay Couplers Released . | . . . Fabnet Peak Effective % . | . . . Robots Rewired . | . . . Allies Hacked . | . . . Hacks Repelled . | . . . Allies | -11 -10 -9 -------- Run | Scr Mat Mat Total Allies . | . . . Largest Group . | . . . Highest-Rated Group . | . . . Highest-Rated Ally . | . . . Total Orders . | . . . Ally Attacks . | . . . Total Damage . | . . . Kills . | . . . Allies Corrupted . | . . . Allies Melted . | . . . Intel | -11 -10 -9 ------- Run | Scr Mat Mat Robot Analysis Total . | . . . Derelict Logs Recovered . | . . . Drone Launches . | . . . Drone Recoveries . | . . . Exploration | -11 -10 -9 ------------- Run | Scr Mat Mat Turns Passed 776 | 87 342 347 Spaces Moved 425 | 63 196 166 Core 7 | 7 . . Treads 2 | . . 2 Legs 416 | 56 196 164 Wheels . | . . . Hover . | . . . Flight . | . . . Fastest Speed 50 | 50 120 120 Average Speed 120 | 112 120 123 Slowest Speed 190 | 120 120 190 Overloaded Moves . | . . . Propulsion Burnouts . | . . . Robots Hopped . | . . . Cave-ins Triggered . | . . . Exploration Rate (%) 25 | 4 43 28 Regions Visited 2 Branch Regions . Pre-discovered Areas . | . . . Known Exits Taken . | . . . Unknown Exits Taken 2 | 1 1 . Scrap Searched . | . . . Spaces Dug 13 | . . 13 Terrain Destroyed 140 | . 42 98 Melee . | . . . Projectile . | . . . AOE 140 | . 42 98 Terrain Rammed . | . . . Walls Destroyed . | . . . Machines Disabled . | . . . Actions | -11 -10 -9 --------- Run | Scr Mat Mat Total 570 | 75 246 249 Wait 44 | 1 6 37 Move 423 | 62 195 166 Hop . | . . . Pick Up 3 | 2 1 . Fast Attach 15 | 6 2 7 Attach 1 | . . 1 Detach . | . . . Swap 3 | . 2 1 Drop 1 | . . 1 Fire 74 | . 40 34 Melee . | . . . Ram . | . . . Kick 6 | 4 . 2 Crush . | . . . Escape Stasis . | . . . Rewire . | . . . Trap . | . . . Miscellaneous . | . . . Route ------- -11/Scrapyard -10/Materials (discovered 2 exits: *Mat / [*Min]) -9/Materials (discovered 1 exit: *Min) History --------- Turn | Location | Event 7 | -11/Scrapyard | Discovered new exit (range 14) 88 | -11/Scrapyard | Entered Materials 171 | -10/Materials | Discovered new exit (range 15) 306 | -10/Materials | Build established: Mutant 309 | -10/Materials | Discovered new exit (range 16) 430 | -10/Materials | Entered another Materials area 430 | -9/Materials | Evolved 2 slots: Utility x1, Weapon x1 452 | -9/Materials | Identified exit to Mines 584 | -9/Materials | Destroyed 8 combat bots 711 | -9/Materials | Lost 7 parts (1n1u5w) 777 | -9/Materials | Self-destructed Last Messages --------------- 00702_ K-01 Serf collects debris. 00703_ Acquired 5 matter. 00705_ K-01 Serf collects debris. 00707_ Dropped Lgt. Treads. 00707_ Acquired Aluminum Leg. 00707_ K-01 Serf collects debris. 00709_ Acquired 8 matter. 00709_ K-01 Serf collects debris. 00710_ Acquired 5 matter. 00710_ K-01 Serf collects debris. 00711_ Connecting with Terminal... 00712_ K-01 Serf collects debris. 00716_ K-01 Serf cleans the Fusion Modulator. 00731_ U-05 Engineer builds a Wall. 00733_ G-34 Mercenary destroyed. 00733_ K-01 Serf collects debris. 00736_ Acquired 4 matter. 00740_ K-01 Serf collects debris. 00747_ K-01 Serf cleans the Processing Tank. 00767_ Imp. Light Cannon destroyed. Map ----- +----------------------------------------------------+ | ????????????????????????#" """"" | | ????????????????????????#T """"" ##### | | ????????????????????????#" """"" #???# % | | ????????????????????????# #???# %% | | ????????????????????????# ==*#???# | | ???????????????????#????# ######## ##???# % | | ???????????????????# #### #?????##+########a###/ | | ???????????????????# a+?????#=%a = % %!# | | ???????????????????+ #?????#%!! = # | | ???????????????????# #?????#=!! """ % ""# | | ???????????????????###### #?????#%! """ T" | | ????????????????????????# #?????# """ "" | | ????????????????????????# a#?????# ! | | ????????????????????????# #?????#######+####### | | ????????????????????????# #??????????+ #??? | | ??????????????#####?????# #??????????# #?? | | ??????????????# ##### #??????????# #??"" | | ??????????????# #??????????+ +?""" | | ??????????? #??????????# #??"" | | ??????????????# #??????????# #??? | | ??????????????# ###### ##??????????# #???### | | ??????????????## ??????# #???????????# #?????? | | ???????????????# ???????# #???????????# #?????? | | ???????????????#????######+###?????????# ?????? | | ????????????????????# Y#?????????# ?????? | | ????????????????????# " @T ##?????????? "?????? | | ????????????????????# """ #??????????? ""?????? | | ????????????????????# """ #??????????? ???????? | | ??????????????????? Y """ #????????????????????? | | ?????????????????? # "" #????????????????????? | | ?????????????????? ?# """ #????????????????????? | | ?????????????????????? "" #????????????????????? | | ???????????????????????"" #????????????????????? | | ???????????????????????? #????????????????????? | | ???????????????????????? #????????????????????? | | ????????????????????????#####????????????????????? | | ?????????????????????????????????????????????????? | | ?????????????????????????????????????????????????? | | ?????????????????????????????????????????????????? | | ?????????????????????????????????????????????????? | | ?????????????????????????????????????????????????? | | ?????????????????????????????????????????????????? | | | | | | | | | | | | | | | | | +----------------------------------------------------+ Best States ------------- Heat Dissipation 35 Energy Generation 10 Energy Capacity 250 Matter Stores 212 Matter Capacity 300 Sight Range 16 Terrain Scan Range 14 Terrain Scan Density 10 Evasion (%) 55 Item Schematics ----------------- None Robot Schematics ------------------ None Fabricated ------------ Nothing Alien Tech Used ----------------- None Achievements -------------- None Challenges ------------ None Game ------ Seed StasisSlugReconstructor Manual? 0 Play Time 00:11:09 Cumulative 152.6 hours Start 2022.03.18 @ 11:45:01 End 2022.03.18 @ 11:52:51 Sessions 1 Manual Loads 0 Difficulty Rogue Special Mode None Game No. 227 Rogue 203 Adventurer 22 Explorer 2 Win Type - Total 1 Types 1/0/0/0/0/0/0/0/0 Lore% 49 Gallery% 55 Achievement% 45 Wizard Run 0 Options --------- ASCII 0 Keyboard 0 Movement Numpad Keybinds 0 Fullscreen 1 Font 14/SmallcapsGlow Map View 84x54 Tactical HUD 1 Map Filters NONE Filters NONE Steam 1 RUN: d4bb563b-f01b-411a-9383-3591020292b0